fUST/lending_fUST_20241226
["ID","MTS","AMOUNT","RATE_DAILY","PERIOD"]
[346665532,1735161040574,-500.0,0.00012134,2]
[346665534,1735161040584,-500.0,0.00012134,2]
[346665536,1735161040593,-251.74,0.00012134,2]
[346665538,1735161040602,-500.0,0.00012134,2]
[346665549,1735161040700,-197.46,0.00012134,2]
[346665551,1735161040710,-500.0,0.00012134,2]
[346665553,1735161040719,-500.0,0.00012134,2]
[346665555,1735161040728,-500.0,0.00012134,2]
[346665557,1735161040738,-500.0,0.00012134,2]
[346665559,1735161040747,-500.0,0.00012134,2]
[346665561,1735161040756,-500.0,0.00012134,2]
[346665563,1735161040765,-1071.88,0.00012134,2]
[346665565,1735161040774,-16735.39,0.00012134,2]
[346665567,1735161040783,-500.0,0.00012134,2]
[346665569,1735161040795,-500.0,0.00012134,2]
[346665571,1735161040803,-500.0,0.00012134,2]
[346665573,1735161040812,-248.88,0.00012134,2]
[346665575,1735161040822,-500.0,0.00012134,2]
[346665577,1735161040831,-287.92,0.00012134,2]
[346665579,1735161040841,-500.0,0.00012134,2]
[346665581,1735161040850,-639.42,0.00012134,2]
[346665583,1735161040859,-500.0,0.00012134,2]
[346665585,1735161040870,-189.4,0.00012134,2]
[346665588,1735161040880,-227.92,0.00012134,2]
[346665589,1735161040892,-343.15,0.00012134,2]
[346665591,1735161040901,-4906.66,0.00012134,2]
[346665593,1735161040910,-500.0,0.00012134,2]
[346665595,1735161040919,-554.91,0.00012134,2]
[346665597,1735161040928,-500.0,0.00012134,2]
[346665599,1735161040937,-565.05,0.00012134,2]
[346665601,1735161040947,-500.0,0.00012134,2]
[346665603,1735161040956,-838.55,0.00012134,2]
[346665605,1735161040966,-730.81,0.00012134,2]
[346665607,1735161040975,-669.09,0.00012134,2]
[346665609,1735161040984,-500.0,0.00012134,2]
[346665611,1735161040993,-4904.25,0.00012134,2]
[346665614,1735161041004,-535.14,0.00012134,2]
[346665616,1735161041015,-219.83,0.00012134,2]
[346665618,1735161041024,-500.0,0.00012134,2]
[346665620,1735161041034,-500.0,0.00012134,2]
[346665622,1735161041043,-458.39,0.00012134,2]
[346665624,1735161041053,-1808.47,0.00012134,2]
[346665626,1735161041062,-500.0,0.00012134,2]
[346665628,1735161041071,-500.0,0.00012134,2]
[346665630,1735161041081,-246.61744443,0.00012134,2]
[346665662,1735161041617,-253.38255557,0.00012134,2]
[346665663,1735161041626,-191.09195762,0.00012134,2]
[346665664,1735161041640,-308.90804238,0.00012134,2]
[346665665,1735161041649,-500.0,0.00012134,2]
[346665666,1735161041660,-2371.74,0.00012134,2]
[346665667,1735161041669,-542.02,0.00012134,2]
[346665668,1735161041679,-500.0,0.00012134,2]
[346665669,1735161041688,-427.28195762,0.00012134,2]
[346665670,1735161041699,-72.71804238,0.00012134,2]
[346665671,1735161041709,-309.95,0.00012134,2]
[346665672,1735161041718,-884.85,0.00012134,2]
[346665673,1735161041728,-500.0,0.00012134,2]
[346665674,1735161041738,-500.0,0.00012134,2]
[346665675,1735161041747,-500.0,0.00012134,2]
[346665676,1735161041757,-500.0,0.00012134,2]
[346665677,1735161041766,-295.84,0.00012134,2]
[346665678,1735161041775,-500.0,0.00012134,2]
[346665679,1735161041784,-822.39,0.00012134,2]
[346665680,1735161041796,-500.0,0.00012134,2]
[346665681,1735161041806,-641.92,0.00012134,2]
[346665682,1735161041815,-500.0,0.00012134,2]
[346665683,1735161041824,-590.32,0.00012134,2]
[346665684,1735161041835,-500.0,0.00012134,2]
[346665685,1735161041844,-500.0,0.00012134,2]
[346665686,1735161041853,-500.0,0.00012134,2]
[346665687,1735161041864,-1085.72,0.00012134,2]
[346665688,1735161041874,-500.0,0.00012134,2]
[346665689,1735161041884,-621.95,0.00012134,2]
[346665690,1735161041894,-500.0,0.00012134,2]
[346665691,1735161041903,-500.0,0.00012172,2]
[346665692,1735161041912,-500.0,0.00012175,2]
[346665693,1735161041922,-502.52809835,0.00012175,2]
[346665694,1735161041931,-500.0,0.00012175,2]
[346665695,1735161041940,-500.0,0.00012175,2]
[346665696,1735161041949,-500.0,0.00012175,2]
[346665697,1735161041959,-500.0,0.00012175,2]
[346665698,1735161041968,-563.92199068,0.00012175,2]
[346665699,1735161041977,-223.39949324,0.00012175,2]
[346665700,1735161041986,-447.42273626,0.00012175,2]
[346665701,1735161041998,-52.57726374,0.00012175,2]
[346665702,1735161042007,-500.0,0.00012175,2]
[346665703,1735161042016,-500.0,0.00012175,2]
[346665704,1735161042026,-500.0,0.00012175,2]
[346665705,1735161042035,-500.0,0.00012175,2]
[346665706,1735161042045,-500.0,0.00012175,2]
[346665707,1735161042055,-500.0,0.00012175,2]
[346665708,1735161042064,-500.0,0.00012175,2]
[346665709,1735161042074,-500.0,0.00012175,2]
[346665710,1735161042084,-500.0,0.00012175,2]
[346665711,1735161042093,-253.77273626,0.00012175,2]
[346665766,1735161043193,-324.78116257,0.00011312,2]
[346665775,1735161043268,-175.21883743,0.00011312,2]
[346665776,1735161043278,-354.78116257,0.00011586,2]
[346665817,1735161046122,-167.17,0.00011312,2]
[346665818,1735161046133,-500.0,0.00011312,2]
[346665819,1735161046143,-500.0,0.00011312,2]
[346665820,1735161046153,-145.21883743,0.00011586,2]
[346665821,1735161046162,-549.3,0.00011586,2]
[346665822,1735161046172,-500.0,0.00011586,2]
[346665823,1735161046180,-500.0,0.0001186,2]
[346665824,1735161046190,-500.0,0.0001186,2]
[346665825,1735161046199,-500.0,0.00012134,2]
[346665826,1735161046208,-246.22726374,0.00012175,2]
[346665827,1735161046217,-500.0,0.00012175,2]
[346665828,1735161046226,-500.0,0.00012175,2]
[346665829,1735161046236,-500.0,0.00012175,2]
[346665830,1735161046245,-500.0,0.00012175,2]
[346665831,1735161046254,-500.0,0.00012175,2]
[346665832,1735161046265,-500.0,0.00012175,2]
[346665833,1735161046274,-500.0,0.00012175,2]
[346665834,1735161046284,-500.0,0.00012175,2]
[346665835,1735161046293,-500.0,0.00012175,2]
[346665836,1735161046303,-500.0,0.00012175,2]
[346665837,1735161046312,-500.0,0.00012175,2]
[346665838,1735161046321,-500.0,0.00012175,2]
[346665839,1735161046331,-500.0,0.00012175,2]
[346665840,1735161046341,-500.0,0.00012175,2]
[346665841,1735161046350,-500.0,0.00012175,2]
[346665842,1735161046359,-500.0,0.00012175,2]
[346665843,1735161046369,-533.10886041,0.00012175,2]
[346665844,1735161046378,-500.0,0.00012175,2]
[346665845,1735161046387,-500.0,0.00012175,2]
[346665846,1735161046396,-500.0,0.00012175,2]
[346665847,1735161046405,-501.38835104,0.00012175,2]
[346665848,1735161046414,-500.0,0.00012175,2]
[346665849,1735161046423,-500.0,0.00012175,2]
[346665850,1735161046432,-500.0,0.00012175,2]
[346665851,1735161046441,-537.2487605,0.00012175,2]
[346665852,1735161046451,-500.0,0.00012176,2]
[346665853,1735161046461,-286.77231633,0.00012176,2]
[346665854,1735161046471,-500.0,0.00012176,2]
[346665855,1735161046480,-500.0,0.00012176,2]
[346665856,1735161046490,-504.46586283,0.00012176,2]
[346665857,1735161046500,-500.0,0.00012176,2]
[346665858,1735161046511,-364.32590328,0.00012176,2]
[346665859,1735161046521,-500.0,0.00012176,2]
[346665860,1735161046530,-500.0,0.00012176,2]
[346665861,1735161046539,-500.0,0.00012176,2]
[346665862,1735161046548,-500.0,0.00012176,2]
[346665863,1735161046558,-500.0,0.00012176,2]
[346665864,1735161046567,-500.0,0.00012176,2]
[346665865,1735161046576,-502.12883326,0.00012176,2]
[346665866,1735161046586,-447.40635656,0.00012176,2]
[346665867,1735161046595,-500.0,0.00012176,2]
[346665868,1735161046605,-501.43795238,0.00012176,2]
[346665869,1735161046614,-525.14870825,0.00012176,2]
[346665870,1735161046623,-500.0,0.00012176,2]
[346665871,1735161046632,-504.00947227,0.00012176,2]
[346665872,1735161046642,-291.25693392,0.00012176,2]
[346665873,1735161046652,-500.0,0.00012176,2]
[346665874,1735161046661,-501.41381954,0.00012176,2]
[346665875,1735161046671,-502.25404249,0.00012176,2]
[346665876,1735161046680,-502.08589558,0.00012176,2]
[346665877,1735161046689,-500.0,0.00012176,2]
[346665878,1735161046698,-507.7857051,0.00012176,2]
[346665879,1735161046708,-500.0,0.00012176,2]
[346665880,1735161046717,-502.11487003,0.00012176,2]
[346665881,1735161046726,-500.0,0.00012176,2]
[346665882,1735161046736,-500.0,0.00012176,2]
[346665883,1735161046745,-471.37574467,0.00012176,2]
[346665889,1735161730787,24900.0,0.00010025,2]
[346665897,1735162178001,645.9114144,9.926e-05,2]
[346665898,1735162198587,-998.7464651,0.00010199,2]
[346665900,1735162198662,-258.20820333,0.00010199,2]
[346665945,1735162232190,-175.4445967,0.00010159,2]
[346665946,1735162232201,-3825.13021867,0.00010199,2]
[346665947,1735162232210,-180.21521658,0.00010259,2]
[346665948,1735162232219,-300.0,0.0001072,2]
[346665949,1735162232232,-500.0,0.00010721,2]
[346665950,1735162232241,-500.0,0.00010721,2]
[346665951,1735162232251,-500.0,0.00010721,2]
[346665953,1735162232261,-500.0,0.00010721,2]
[346665955,1735162232270,-807.83,0.00010721,2]
[346665956,1735162232280,-500.0,0.00010721,2]
[346665959,1735162232289,-785.91,0.00010721,2]
[346665961,1735162232299,-505.72159742,0.00010994,2]
[346665962,1735162232308,-502.88738868,0.00010994,2]
[346665965,1735162232318,-500.0,0.00010994,2]
[346665967,1735162232328,-500.0,0.00010994,2]
[346665968,1735162232337,-499.0,0.00010994,2]
[346665969,1735162232346,-500.0,0.00010994,2]
[346665970,1735162232472,-500.0,0.00010994,2]
[346665971,1735162232482,-565.16,0.00010994,2]
[346665972,1735162232492,-248.91856288,0.00010994,2]
[346665973,1735162232504,-251.08143712,0.00010994,2]
[346665974,1735162232514,-500.0,0.00010994,2]
[346665975,1735162232524,-500.0,0.00010994,2]
[346665976,1735162232534,-500.0,0.00010994,2]
[346665977,1735162232543,-500.0,0.00010994,2]
[346665978,1735162232553,-275.96074942,0.00010994,2]
[346665979,1735162232563,-500.0,0.00010994,2]
[346665980,1735162232573,-500.0,0.00010994,2]
[346665981,1735162232583,-500.0,0.00010994,2]
[346665982,1735162232592,-448.58540937,0.00010994,2]
[346665983,1735162232605,-500.0,0.00010995,2]
[346665984,1735162232614,-500.0,0.00010995,2]
[346665985,1735162232623,-500.0,0.00010995,2]
[346665986,1735162232633,-564.13,0.00010995,2]
[346665987,1735162232642,-500.0,0.00010995,2]
[346665988,1735162232652,-500.0,0.00010995,2]
[346665989,1735162232661,-500.0,0.00010995,2]
[346665990,1735162232671,-500.0,0.00010995,2]
[346665991,1735162232681,-500.0,0.00010995,2]
[346665992,1735162232690,-500.0,0.00010995,2]
[346665993,1735162232699,-500.0,0.00010995,2]
[346665994,1735162232709,-500.0,0.00010995,2]
[346665995,1735162232718,-500.0,0.00010995,2]
[346665996,1735162232727,-500.0,0.00010995,2]
[346665997,1735162232737,-500.0,0.00010995,2]
[346665998,1735162232748,-168.0,0.00010995,2]
[346665999,1735162232757,-500.0,0.00010995,2]
[346666000,1735162232767,-500.0,0.00010995,2]
[346666001,1735162232776,-500.0,0.00010995,2]
[346666002,1735162232785,-500.0,0.00010995,2]
[346666003,1735162232794,-500.0,0.00010995,2]
[346666004,1735162232804,-500.0,0.00010995,2]
[346666005,1735162232813,-500.0,0.00010995,2]
[346666006,1735162232823,-500.0,0.00010995,2]
[346666007,1735162232832,-500.0,0.00010995,2]
[346666008,1735162232841,-500.0,0.00010995,2]
[346666009,1735162232852,-500.0,0.00010995,2]
[346666010,1735162232861,-507.91254729,0.00010995,2]
[346666011,1735162232871,-500.0,0.00010995,2]
[346666012,1735162232880,-500.0,0.00010995,2]
[346666013,1735162232890,-948.63,0.00010995,2]
[346666014,1735162232900,-504.80506325,0.00010995,2]
[346666015,1735162232909,-500.0,0.00010995,2]
[346666016,1735162232919,-500.0,0.00010995,2]
[346666017,1735162232929,-500.0,0.00010995,2]
[346666018,1735162232939,-500.0,0.00010995,2]
[346666019,1735162232948,-500.0,0.00010995,2]
[346666020,1735162232957,-500.0,0.00010995,2]
[346666021,1735162232966,-500.0,0.00010995,2]
[346666022,1735162232976,-500.0,0.00010995,2]
[346666023,1735162232985,-500.0,0.00010995,2]
[346666024,1735162232994,-611.93,0.00010995,2]
[346666025,1735162233003,-500.0,0.00010995,2]
[346666026,1735162233013,-515.67,0.00010995,2]
[346666027,1735162233022,-588.73,0.00010995,2]
[346666028,1735162233031,-500.0,0.00010995,2]
[346666029,1735162233041,-766.86,0.00010995,2]
[346666030,1735162233051,-507.33,0.00010995,2]
[346666031,1735162233060,-870.59,0.00010995,2]
[346666032,1735162233069,-500.0,0.00010995,2]
[346666033,1735162233079,-500.0,0.00010995,2]
[346666034,1735162233089,-557.57,0.00010995,2]
[346666035,1735162233099,-5193.98,0.00010995,2]
[346666036,1735162233111,-500.0,0.00010995,2]
[346666037,1735162233120,-500.0,0.00010995,2]
[346666038,1735162233130,-2307.5,0.00010995,2]
[346666039,1735162233139,-398.63,0.00010995,2]
[346666040,1735162233148,-505.44949173,0.00010995,2]
[346666041,1735162233158,-500.0,0.00010995,2]
[346666042,1735162233167,-500.0,0.00010995,2]
[346666043,1735162233177,-500.0,0.00010995,2]
[346666044,1735162233187,-500.0,0.00010995,2]
[346666045,1735162233196,-500.0,0.00010995,2]
[346666046,1735162233206,-500.0,0.00010995,2]
[346666047,1735162233216,-500.0,0.00010995,2]
[346666048,1735162233228,-500.0,0.00010995,2]
[346666049,1735162233239,-500.0,0.00010995,2]
[346666050,1735162233248,-500.0,0.00010995,2]
[346666051,1735162233258,-500.0,0.00010995,2]
[346666052,1735162233269,-500.0,0.00010995,2]
[346666053,1735162233279,-500.0,0.00010995,2]
[346666054,1735162233288,-500.0,0.00010995,2]
[346666055,1735162233299,-500.0,0.00010995,2]
[346666056,1735162233308,-500.0,0.00010995,2]
[346666057,1735162233317,-500.0,0.00010995,2]
[346666058,1735162233327,-500.0,0.00010995,2]
[346666059,1735162233336,-500.0,0.00010995,2]
[346666060,1735162233346,-500.0,0.00010995,2]
[346666061,1735162233357,-500.0,0.00010995,2]
[346666062,1735162233367,-500.0,0.00010995,2]
[346666063,1735162233376,-500.0,0.00010995,2]
[346666064,1735162233386,-500.0,0.00010995,2]
[346666065,1735162233396,-500.0,0.00010995,2]
[346666066,1735162233406,-2470.42,0.00010995,2]
[346666067,1735162233417,-500.0,0.00010995,2]
[346666068,1735162233427,-500.0,0.00010995,2]
[346666069,1735162233437,-500.0,0.00010995,2]
[346666070,1735162233447,-500.0,0.00010995,2]
[346666071,1735162233456,-1060.35,0.00010995,2]
[346666072,1735162233467,-500.0,0.00010995,2]
[346666073,1735162233477,-500.0,0.00010995,2]
[346666074,1735162233486,-500.0,0.00010995,2]
[346666075,1735162233496,-166.67455544,0.00010995,2]
[346666076,1735162233506,-500.0,0.00010995,2]
[346666077,1735162233516,-556.26,0.00010995,2]
[346666078,1735162233526,-500.0,0.00010995,2]
[346666079,1735162233535,-807.83,0.00010995,2]
[346666080,1735162233544,-500.0,0.00010995,2]
[346666081,1735162233554,-776.79,0.00010995,2]
[346666082,1735162233563,-501.09943716,0.00010995,2]
[346666083,1735162233573,-501.870589,0.00010995,2]
[346666084,1735162233583,-500.0,0.00010995,2]
[346666085,1735162233592,-500.0,0.00010995,2]
[346666086,1735162233602,-500.0,0.00010995,2]
[346666087,1735162233611,-500.0,0.00010995,2]
[346666088,1735162233621,-502.57760747,0.00010995,2]
[346666089,1735162233632,-500.0,0.00010995,2]
[346666090,1735162233641,-500.0,0.00010995,2]
[346666091,1735162233651,-500.0,0.00010995,2]
[346666092,1735162233660,-500.0,0.00010995,2]
[346666093,1735162233670,-785.91,0.00010995,2]
[346666094,1735162233679,-500.0,0.00010995,2]
[346666095,1735162233689,-500.0,0.00010995,2]
[346666096,1735162233699,-2873.93020903,0.00011,2]
[346666097,1735162233709,-176.81687003,0.00011169,2]
[346666098,1735162233718,-500.0,0.00011268,2]
[346666099,1735162233729,-500.0,0.00011268,2]
[346666100,1735162233738,-500.0,0.00011268,2]
[346666101,1735162233748,-500.0,0.00011269,2]
[346666102,1735162233758,-384.47,0.00011269,2]
[346666103,1735162233767,-500.0,0.00011269,2]
[346666104,1735162233777,-500.0,0.00011269,2]
[346666105,1735162233787,-500.0,0.00011269,2]
[346666106,1735162233797,-500.0,0.00011269,2]
[346666107,1735162233807,-500.0,0.00011269,2]
[346666108,1735162233817,-500.0,0.00011269,2]
[346666109,1735162233827,-500.0,0.00011269,2]
[346666110,1735162233837,-208.1,0.00011269,2]
[346666111,1735162233846,-500.0,0.00011269,2]
[346666112,1735162233859,-500.0,0.00011269,2]
[346666113,1735162233869,-500.0,0.00011269,2]
[346666114,1735162233879,-500.0,0.00011269,2]
[346666115,1735162233889,-291.08,0.00011269,2]
[346666116,1735162233899,-151.93,0.00011269,2]
[346666117,1735162233908,-500.0,0.00011269,2]
[346666118,1735162233918,-500.0,0.00011269,2]
[346666119,1735162233928,-948.63,0.00011269,2]
[346666120,1735162233939,-236.97,0.00011269,2]
[346666121,1735162233949,-500.0,0.00011269,2]
[346666122,1735162233959,-500.0,0.00011269,2]
[346666123,1735162233969,-273.71,0.00011269,2]
[346666124,1735162233978,-607.1,0.00011269,2]
[346666125,1735162233990,-500.0,0.00011269,2]
[346666126,1735162234001,-500.0,0.00011269,2]
[346666127,1735162234011,-588.73,0.00011269,2]
[346666128,1735162234021,-500.0,0.00011269,2]
[346666129,1735162234031,-766.86,0.00011269,2]
[346666130,1735162234045,-870.59,0.00011269,2]
[346666131,1735162234054,-500.0,0.00011269,2]
[346666132,1735162234064,-500.0,0.00011269,2]
[346666133,1735162234073,-557.57,0.00011269,2]
[346666134,1735162234082,-5193.98,0.00011269,2]
[346666135,1735162234092,-500.0,0.00011269,2]
[346666136,1735162234102,-2307.5,0.00011269,2]
[346666137,1735162234112,-300.74,0.00011269,2]
[346666138,1735162234122,-500.0,0.00011269,2]
[346666139,1735162234132,-500.0,0.00011269,2]
[346666140,1735162234142,-500.0,0.00011269,2]
[346666141,1735162234151,-536.93,0.00011269,2]
[346666142,1735162234160,-500.0,0.00011269,2]
[346666143,1735162234169,-500.0,0.00011269,2]
[346666144,1735162234180,-506.1,0.00011269,2]
[346666145,1735162234190,-500.0,0.00011269,2]
[346666146,1735162234200,-500.0,0.00011269,2]
[346666147,1735162234210,-500.0,0.00011269,2]
[346666148,1735162234222,-500.0,0.00011269,2]
[346666149,1735162234234,-354.4,0.00011269,2]
[346666150,1735162234244,-500.0,0.00011269,2]
[346666151,1735162234255,-2470.42,0.00011269,2]
[346666152,1735162234267,-1060.35,0.00011269,2]
[346666153,1735162234277,-502.61058018,0.00011269,2]
[346666154,1735162234287,-500.0,0.00011269,2]
[346666155,1735162234297,-501.97083415,0.00011269,2]
[346666156,1735162234307,-556.26,0.00011269,2]
[346666157,1735162234317,-500.0,0.00011269,2]
[346666158,1735162234327,-807.83,0.00011269,2]
[346666159,1735162234337,-500.0,0.00011269,2]
[346666160,1735162234347,-776.79,0.00011269,2]
[346666161,1735162234360,-500.0,0.00011269,2]
[346666162,1735162234369,-500.0,0.00011269,2]
[346666163,1735162234380,-500.0,0.00011269,2]
[346666164,1735162234390,-785.91,0.00011269,2]
[346666165,1735162234399,-503.0038404,0.00011311,2]
[346666166,1735162234408,-500.0,0.00011311,2]
[346666167,1735162234418,-432.78831361,0.00011311,2]
[346666168,1735162234428,-500.0,0.00011311,2]
[346666169,1735162234438,-500.0,0.00011311,2]
[346666170,1735162234447,-430.32,0.00011311,2]
[346666171,1735162234457,-169.86171395,0.00011311,2]
[346666172,1735162234467,-500.0,0.00011311,2]
[346666173,1735162234476,-500.0,0.00011311,2]
[346666174,1735162234485,-500.0,0.00011311,2]
[346666175,1735162234495,-504.88510161,0.00011311,2]
[346666176,1735162234504,-500.0,0.00011311,2]
[346666177,1735162234513,-500.0,0.00011311,2]
[346666178,1735162234523,-500.0,0.00011311,2]
[346666179,1735162234532,-500.0,0.00011311,2]
[346666180,1735162234541,-500.0,0.00011311,2]
[346666181,1735162234551,-500.0,0.00011311,2]
[346666182,1735162234561,-500.0,0.00011311,2]
[346666183,1735162234570,-500.0,0.00011311,2]
[346666184,1735162234579,-500.0,0.00011311,2]
[346666185,1735162234589,-500.0,0.00011311,2]
[346666186,1735162234598,-500.0,0.00011311,2]
[346666187,1735162234610,-500.0,0.00011311,2]
[346666188,1735162234621,-500.0,0.00011311,2]
[346666189,1735162234630,-500.0,0.00011311,2]
[346666190,1735162234640,-500.0,0.00011311,2]
[346666191,1735162234649,-500.0,0.00011311,2]
[346666192,1735162234659,-500.0,0.00011311,2]
[346666193,1735162234669,-500.0,0.00011311,2]
[346666194,1735162234679,-500.0,0.00011311,2]
[346666195,1735162234688,-500.0,0.00011311,2]
[346666196,1735162234698,-500.0,0.00011311,2]
[346666197,1735162234707,-585.85,0.00011311,2]
[346666198,1735162234717,-500.0,0.00011311,2]
[346666199,1735162234726,-500.0,0.00011311,2]
[346666200,1735162234736,-504.12752646,0.00011311,2]
[346666201,1735162234745,-502.23157829,0.00011311,2]
[346666202,1735162234755,-500.0,0.00011311,2]
[346666203,1735162234765,-504.0302554,0.00011311,2]
[346666204,1735162234775,-500.0,0.00011311,2]
[346666205,1735162234785,-500.0,0.00011311,2]
[346666206,1735162234795,-500.0,0.00011311,2]
[346666207,1735162234804,-500.0,0.00011311,2]
[346666208,1735162234814,-500.0,0.00011311,2]
[346666209,1735162234824,-166.33358366,0.00011311,2]
[346666210,1735162234834,-500.26962273,0.00011311,2]
[346666211,1735162234843,-500.0,0.00011311,2]
[346666212,1735162234854,-500.0,0.00011311,2]
[346666213,1735162234863,-500.0,0.00011311,2]
[346666214,1735162234873,-501.66414816,0.00011311,2]
[346666215,1735162234883,-500.0,0.00011311,2]
[346666216,1735162234893,-500.0,0.00011311,2]
[346666217,1735162234903,-500.0,0.00011311,2]
[346666218,1735162234913,-500.0,0.00011311,2]
[346666219,1735162234923,-500.0,0.00011311,2]
[346666220,1735162234933,-500.0,0.00011311,2]
[346666221,1735162234943,-500.0,0.00011311,2]
[346666222,1735162234952,-502.24284396,0.00011311,2]
[346666223,1735162234962,-500.0,0.00011311,2]
[346666224,1735162234972,-500.0,0.00011311,2]
[346666225,1735162234981,-500.0,0.00011311,2]
[346666226,1735162234991,-500.0,0.00011311,2]
[346666227,1735162235000,-500.0,0.00011311,2]
[346666228,1735162235010,-540.58280519,0.00011311,2]
[346666229,1735162235019,-500.0,0.00011311,2]
[346666230,1735162235029,-500.0,0.00011311,2]
[346666231,1735162235127,-500.0,0.00011311,2]
[346666232,1735162235137,-500.0,0.00011311,2]
[346666233,1735162235147,-500.0,0.00011311,2]
[346666234,1735162235155,-500.0,0.00011311,2]
[346666235,1735162235164,-500.0,0.00011311,2]
[346666236,1735162235174,-500.0,0.00011311,2]
[346666237,1735162235184,-500.0,0.00011311,2]
[346666238,1735162235193,-500.0,0.00011311,2]
[346666239,1735162235202,-505.35906441,0.00011311,2]
[346666240,1735162235212,-502.31671248,0.00011311,2]
[346666241,1735162235222,-500.0,0.00011311,2]
[346666242,1735162235234,-500.0,0.00011311,2]
[346666243,1735162235244,-16228.43,0.00011311,2]
[346666244,1735162235254,-500.0,0.00011311,2]
[346666245,1735162235264,-500.0,0.00011311,2]
[346666246,1735162235273,-500.0,0.00011311,2]
[346666247,1735162235283,-503.21424572,0.00011311,2]
[346666248,1735162235292,-500.0,0.00011311,2]
[346666249,1735162235304,-500.0,0.00011311,2]
[346666250,1735162235314,-500.0,0.00011311,2]
[346666251,1735162235323,-501.47771127,0.00011311,2]
[346666252,1735162235333,-574.85,0.00011311,2]
[346666253,1735162235342,-503.65026606,0.00011311,2]
[346666254,1735162235351,-500.0,0.00011311,2]
[346666255,1735162235361,-500.0,0.00011311,2]
[346666256,1735162235370,-500.0,0.00011311,2]
[346666257,1735162235379,-500.0,0.00011311,2]
[346666258,1735162235389,-501.62156979,0.00011311,2]
[346666259,1735162235398,-501.78425014,0.00011311,2]
[346666260,1735162235408,-500.0,0.00011311,2]
[346666261,1735162235417,-500.0,0.00011311,2]
[346666262,1735162235426,-500.0,0.00011311,2]
[346666263,1735162235436,-500.0,0.00011311,2]
[346666264,1735162235445,-501.62912457,0.00011311,2]
[346666265,1735162235454,-500.0,0.00011311,2]
[346666266,1735162235464,-4088.89,0.00011311,2]
[346666267,1735162235473,-500.0,0.00011311,2]
[346666268,1735162235483,-500.0,0.00011311,2]
[346666269,1735162235492,-500.0,0.00011311,2]
[346666270,1735162235501,-500.0,0.00011311,2]
[346666271,1735162235510,-500.99275447,0.00011311,2]
[346666272,1735162235520,-500.0,0.00011311,2]
[346666273,1735162235529,-500.0,0.00011311,2]
[346666274,1735162235538,-154.57146418,0.00011311,2]
[346666275,1735162235548,-500.0,0.00011311,2]
[346666276,1735162235558,-500.0,0.00011311,2]
[346666277,1735162235567,-674.94,0.00011311,2]
[346666278,1735162235576,-500.0,0.00011311,2]
[346666279,1735162235586,-500.0,0.00011311,2]
[346666280,1735162235596,-500.0,0.00011311,2]
[346666281,1735162235605,-500.0,0.00011311,2]
[346666282,1735162235615,-500.0,0.00011311,2]
[346666283,1735162235624,-500.0,0.00011311,2]